Cogmind - Beta 15 --- EXPLORER MODE // 2025.05.17 @ 02:21:04 Player: DemonChuckle Result: Destroyed by G-50 Soldier with Heavy Laser Performance ------------- Evolutions (4) 2000 Regions Visited (9) 1800 Robots Destroyed (208) 1040 Value Destroyed (7564) 7564 Prototype IDs (23) 460 Alien Tech Used (0) 0 Bonus (1608) 1608 TOTAL SCORE: 14472 Bonus ------- High Alert Combat Kills 766 Follower Combat Kills 535 Entered Garrisons 200 Used RIF Installer 500 Friendly Fire -393 Cogmind --------- Core Integrity 0/850 Matter 300/300 Energy 100/100 System Corruption 6% Temperature Cool (9) Movement Core (50) Location -6/Factory Parts ------- > --- POWER (3+1) ------ (None) > --- PROPULSION (4+1) - (None) > --- UTILITY (7) ------ Transport Network Coupler Rainbow Chip > --- WEAPON (2+1) ----- (None) > --- INVENTORY (5) ---- High-capacity Matter Pod (200) Authchip [R/Combat] Relay Coupler [Swarmer] (41) Relay Coupler [Brawler] (42) Relay Coupler [Sentry] (26) Peak State ------------ > --- POWER ------------ Micro Nuclear Core Enhanced Fission Core > --- PROPULSION ------- (None) > --- UTILITY ---------- Huge Storage Unit Large Matter Pod Improved Signal Interpreter Transport Network Coupler Backup Plating VII Backup Plating VII Relay Coupler [Swarmer] Rainbow Chip > --- WEAPON ----------- Remote Datajack > --- INVENTORY -------- High-capacity Matter Pod IFF Parser Authchip [R/NC] Authchip [R/Combat] Authchip [R/Combat] Authchip [R/Combat] Authchip [R/Combat] Authchip [R/Combat] Authchip [R/Combat] Authchip [R/Combat] Authchip [R/Combat] Relay Coupler [Swarmer] Relay Coupler [Swarmer] Relay Coupler [Brawler] Relay Coupler [Duelist] Relay Coupler [Sentry] Relay Coupler [Sentry] Relay Coupler [Sentry] Relay Coupler [Demolisher] [Rating: 58] Favorites ----------- Power Light Nuclear Core Engine Angular Momentum Engine Power Core Light Nuclear Core Propulsion Armored Treads Treads Armored Treads Leg Aluminum Leg Wheel Armored Wheel Utility Large Matter Pod Device Advanced Sensor Array Storage Large Matter Pod Processor Improved Signal Interpreter Hackware Authchip [R/Combat] Protection Backup Plating VII Weapon Enhanced Autogun Energy Gun Subdweller Laser Ballistic Gun Enhanced Autogun Ballistic Cannon Heavy Flak Cannon Launcher Proton Missile Launcher Special Weapon Remote Datajack Special Melee Weapon Improved Datajack Build | -11 -10 -10 -8 -8 -8 -7 -7 -7 -6 ------- Run | Yrd Mat Sub Mat Sto Gar Fac Low Low Fac Slots Evolved 9 | . 1 . 4 . . 2 . . 2 Power 2 | . 1 . . . . 1 . . . Propulsion 2 | . . . 2 . . . . . . Utility 5 | . . . 2 . . 1 . . 2 Weapon . | . . . . . . . . . . Parts Attached 125 | 7 5 26 32 8 18 19 1 . 9 Power 32 | 1 2 7 6 4 5 6 . . 1 Engine 16 | 1 2 6 5 . 1 1 . . . Core 16 | . . 1 1 4 4 5 . . 1 Reactor . | . . . . . . . . . . Propulsion 34 | 2 . 7 12 . 5 8 . . . Treads 14 | . . 3 5 . 5 1 . . . Leg 4 | 2 . 1 1 . . . . . . Wheel 16 | . . 3 6 . . 7 . . . Hover . | . . . . . . . . . . Flight . | . . . . . . . . . . Utility 27 | 2 2 1 10 . 2 3 1 . 6 Device 5 | . 1 . 2 . 1 1 . . . Storage 6 | . . 1 5 . . . . . . Processor 7 | . 1 . 2 . 1 1 1 . 1 Hackware 4 | . . . . . . 1 . . 3 Protection 5 | 2 . . 1 . . . . . 2 Artifact . | . . . . . . . . . . Weapon 32 | 2 1 11 4 4 6 2 . . 2 Energy Gun 8 | 1 . 4 . . 3 . . . . Energy Cannon . | . . . . . . . . . . Ballistic Gun 9 | 1 . 4 2 . 2 . . . . Ballistic Cannon 2 | . . . 1 . 1 . . . . Launcher 8 | . 1 1 1 4 . 1 . . . Special Weapon 4 | . . 2 . . . . . . 2 Impact Weapon . | . . . . . . . . . . Slashing Weapon . | . . . . . . . . . . Piercing Weapon . | . . . . . . . . . . Special Melee Weapon 1 | . . . . . . 1 . . . Unidentified Prototypes 5 | . . . 1 1 3 . . . . Corrupted Parts 2 | . . . . . . 2 . . . System Corruption 10 | . . . . . . 10 . . . Parts Lost 42 | . . 6 6 3 4 3 . . 20 Power 11 | . . 2 1 2 1 1 . . 4 Propulsion 10 | . . 1 2 . 2 1 . . 4 Utility 10 | . . . 2 . . . . . 8 Weapon 11 | . . 3 1 1 1 1 . . 4 Highest Loss Streak 12 | . . 3 3 1 2 1 . . 12 To Critical Strikes 2 | . . 1 . . 1 . . . . Average Backups 23 | 2 4 28 20 23 24 24 25 25 22 Power 2 | . . 2 1 3 3 2 1 1 . Propulsion 1 | . . 3 . . . . . . . Utility 15 | 1 4 14 10 9 12 21 23 23 20 Weapon 5 | . . 6 6 10 7 . 1 1 . Tool/Special . | . . . . . . . . . . Unused Backups 62 | . 3 1 27 4 9 . . . 18 Power 1 | . . . . 1 . . . . . Propulsion 2 | . . . 2 . . . . . . Utility 38 | . 2 1 12 . 6 . . . 17 Weapon 20 | . 1 . 13 3 3 . . . . Tool/Special 1 | . . . . . . . . . 1 Average Slot Usage (%) 92 | . 98 82 92 99 99 96 100 100 67 Engine 6 | . 24 8 13 1 1 7 7 7 1 Core 11 | . . 11 2 13 14 12 14 14 11 Treads 17 | . . 11 20 32 32 17 . . . Leg 1 | . 24 1 . . . . . . . Wheel 8 | . . 11 9 . . 10 28 28 7 Device 3 | . 10 . 2 . 2 7 7 7 2 Storage 13 | . . 11 14 16 16 14 14 14 11 Processor 9 | . 10 . 9 16 13 7 14 14 12 Energy Gun 3 | . 10 10 2 . . . . . . Ballistic Gun 9 | . 11 10 12 14 13 5 . . . Ballistic Cannon 1 | . . . . . 2 6 . . . Launcher 1 | . . . . 1 . 1 7 7 4 Peak Build Rating 58 | 7 10 27 34 38 46 53 52 52 58 Average Rating 35 | 5 9 22 30 37 38 49 52 52 45 On Entrance 31 | . 7 10 24 34 37 46 52 52 52 Naked Turns . | . . . . . . . . . . Heaviest Build 243 | 10 14 227 243 105 114 123 115 115 115 Greatest Support 83 | 20 20 25 80 80 83 83 46 46 46 Greatest Overweight (x) 36 | 2 1 11 12 1 1 11 2 2 36 Average Overweight (x) 3 | . . 9 2 1 1 1 2 2 6 Largest Inventory Capacity 35 | 5 5 35 35 25 25 25 25 25 25 Average Capacity 25 | 5 5 32 23 25 25 25 25 25 24 Most Carried 35 | 5 5 35 35 25 25 25 25 25 25 Average Carried 24 | 2 4 31 20 23 24 24 24 25 22 Final Capacity 35 | 5 5 35 25 25 25 25 25 25 5 Final Carried 33 | 5 5 33 21 24 25 25 25 25 5 Class Distribution -------------------- 35% | Hacker-Mutant 24% | Hauler-Mutant 15% | Commander-Mutant 13% | Bothacker-Assassin 6% | Scavenger-Mutant 4% | Bothacker-Mutant Dominant Class ---------------- Hacker-Mutant | -10/Materials Hauler-Mutant | -10/Subcaves Hauler-Mutant | -8/Materials Hacker-Mutant | -8/Storage Commander-Mutant | -8/Garrison Hacker-Mutant | -7/Factory Bothacker-Assassin | -7/Lower Caves Bothacker-Assassin | -7/Lower Caves Bothacker-Mutant | -6/Factory Resources | -11 -10 -10 -8 -8 -8 -7 -7 -7 -6 ----------- Run | Yrd Mat Sub Mat Sto Gar Fac Low Low Fac Matter Collected 5937 | 291 185 446 1938 898 724 892 189 238 136 Remotely 245 | . . . . . . 245 . . . Salvage Created 7729 | 129 282 570 2728 1316 998 1222 . 112 372 Parts 434 | 10 21 46 145 91 47 57 . 6 11 Haulers Intercepted 11 | . 2 . 3 2 . 3 . . 1 Recyclers Shooed 4 | . . . 1 . . 3 . . . Parts Field Recycled . | . . . . . . . . . . Retrieved Matter . | . . . . . . . . . . Parts Self-Destructed . | . . . . . . . . . . Prevented . | . . . . . . . . . . Kills | -11 -10 -10 -8 -8 -8 -7 -7 -7 -6 ------- Run | Yrd Mat Sub Mat Sto Gar Fac Low Low Fac Combat Hostiles Destroyed 149 | . 6 19 51 24 20 23 . 2 4 Melee 1 | . . . . . . . . . 1 Guns 110 | . 6 18 44 19 17 5 . . 1 Cannons 16 | . . . 1 . 3 12 . . . AOE 19 | . . 1 6 4 . 5 . 1 2 Classes Destroyed 16 | 2 4 1 6 . 1 2 . . . Worker 13 | . . . 5 4 . 3 . . 1 Builder 11 | . . . 4 5 . 1 . . 1 Tunneler 3 | 2 . . . . . 1 . . . Hauler 11 | . 2 . 3 2 . 3 . . 1 Recycler 3 | 1 . . . 1 . 1 . . . Mechanic 1 | . . . . . . 1 . . . Operator 4 | . . . 1 1 . 2 . . . Watcher 8 | . 1 . 4 1 1 1 . . . Swarmer 25 | . 4 6 6 8 1 . . . . Grunt 77 | . 2 . 30 13 11 15 . 2 4 Brawler 4 | . . . 2 . 1 1 . . . Duelist 8 | . . . 4 1 . 3 . . . Sentry 19 | . . . 9 2 7 1 . . . Hunter 4 | . . . . . 4 . . . . Programmer 3 | . . . . . . 3 . . . Subdweller 13 | . . 13 . . . . . . . Thug 1 | . . . . . 1 . . . . Best Kill Streak 10 | 3 3 4 8 9 2 10 . 2 4 Combat Bots Only 7 | . 2 4 7 5 2 5 . 2 1 Max Kills in Single Turn 5 | 1 2 2 3 4 5 2 . 1 2 Gunslinging 1 | . 1 1 . . . . . . . Exploded 2 | . . 1 2 2 . 1 . 1 1 Melee 1 | . . . . . . . . . 1 Uniques/NPCs Destroyed . | . . . . . . . . . . Combat | -11 -10 -10 -8 -8 -8 -7 -7 -7 -6 -------- Run | Yrd Mat Sub Mat Sto Gar Fac Low Low Fac Hostile Shots Fired 1021 | . 33 133 248 120 107 125 . 3 252 Missed 276 | . 13 43 66 28 26 31 . . 69 Hits 745 | . 20 90 182 92 81 94 . 3 183 Melee 23 | . . . 9 6 . 7 . . 1 Projectile 722 | . 20 90 173 86 81 87 . 3 182 Critical Strikes 32 | . . 5 8 4 2 4 . 1 8 Part Disruptions 1 | . . . . . . 1 . . . Damage Taken 7940 | . 153 1238 1752 775 739 1056 . 62 2165 Core 1531 | . 32 197 212 59 76 102 . . 853 Absorbed by Shields . | . . . . . . . . . . Ignored by Resistances 4714 | . 97 665 1076 488 452 638 . 38 1260 Core Remaining (%) 57 | 100 . 8 . . 36 . . 85 . Volleys Fired 536 | 7 24 79 165 78 64 81 . 5 33 Largest 2 | 2 2 2 2 2 2 2 . 1 1 Hottest 200 | 60 60 200 78 72 72 83 . 39 39 Shots Fired 975 | 8 45 136 324 156 127 137 . 9 33 Gun 820 | 8 45 115 315 148 120 47 . . 22 Cannon 84 | . . . 7 . 7 70 . . . Launcher 53 | . . 5 2 8 . 20 . 9 9 Special 18 | . . 16 . . . . . . 2 Kinetic 778 | 7 24 56 277 148 127 117 . . 22 Thermal 96 | 1 21 74 . . . . . . . Explosive 7 | . . 5 2 . . . . . . Electromagnetic 92 | . . 1 45 8 . 20 . 9 9 Robot Hit Streak 40 | 4 20 36 40 39 25 18 . 4 22 Robot Miss Streak 5 | 1 1 1 4 2 2 5 . 1 2 Penetration Max 1 | . . . . . . 1 . . 1 Secondary Targets 18 | . 1 5 10 . 2 . . . . Max Gunslinging Chain 1 | . 1 1 1 . 1 . . . . Shots Hit Robots 785 | 7 36 106 270 124 88 116 . 6 32 Core Hits 416 | 4 15 34 130 53 46 115 . 2 17 Critical Kills 2 | . . . . . 1 1 . . . Critical Parts Destroyed 4 | . . . 1 1 . 1 . . 1 Critical Strikes 8 | . . 2 1 1 1 2 . . 1 Destroy 8 | . . 2 1 1 1 2 . . 1 Melee Attacks 6 | . . . . . . 1 . 2 3 Impact . | . . . . . . . . . . Slashing . | . . . . . . . . . . Piercing . | . . . . . . . . . . Sneak Attacks 3 | . . . . . . 1 . 2 . Combat Hostiles . | . . . . . . . . . . Follow-up Attacks . | . . . . . . . . . . Damage Inflicted 17991 | 85 432 2371 5262 2663 2345 3620 . 164 1049 Guns 11522 | 85 432 1887 4510 2067 1279 772 . . 490 Cannons 2214 | . . . 195 . 161 1858 . . . Explosions 4178 | . . 484 547 596 905 990 . 164 492 Melee . | . . . . . . . . . . Ramming 77 | . . . 10 . . . . . 67 Kinetic 11696 | 73 225 864 3907 2067 1440 2630 . . 490 Thermal 1901 | 12 207 1023 414 191 . 38 . 16 . Explosive 1675 | . . 484 133 . 905 54 . . 99 Electromagnetic 2642 | . . . 798 405 . 898 . 148 393 Impact . | . . . . . . . . . . Slashing . | . . . . . . . . . . Piercing . | . . . . . . . . . . Highest Corruption 12 | . . . . . . 12 12 12 6 Average Corruption 7 | . . . . . . 2 12 12 2 Corruption Purged . | . . . . . . . . . . Corruption Blocked . | . . . . . . . . . . Effects 84 | . . . . . . 15 21 45 3 Message Errors 25 | . . . . . . 5 8 12 . Matter Fused 15 | . . . . . . 3 6 6 . Heat Flow Errors 13 | . . . . . . 2 1 10 . Energy Discharges 11 | . . . . . . 3 2 4 2 Parts Fused 2 | . . . . . . . 1 1 . Data Loss (minor) 6 | . . . . . . . 2 3 1 Data Loss (major) 5 | . . . . . . 1 1 3 . Misfires 4 | . . . . . . . . 4 . Alerts 2 | . . . . . . . . 2 . Weapon Failures 1 | . . . . . . 1 . . . Overload Shots . | . . . . . . . . . . Overflow Damage 87 | . . . 3 2 78 2 . . 2 Projectiles 2 | . . . . . . 2 . . . Explosions 85 | . . . 3 2 78 . . . 2 Melee . | . . . . . . . . . . Knockbacks 69 | . . . 7 . . 62 . . . Impact . | . . . . . . . . . . Kinetic 63 | . . . 5 . . 58 . . . Secondary 6 | . . . 2 . . 4 . . . Self-Inflicted Damage 329 | . . . 71 . 126 12 . 27 93 Shots 14 | . . . 3 . 2 2 . 3 4 Rammed 11 | . . . 1 . . . . . 10 Targets Rammed 11 | . . . 1 . . . . . 10 Kicked . | . . . . . . . . . . Crushed . | . . . . . . . . . . Highest Temperature 571 | . 195 320 416 175 132 571 215 262 46 Average Temperature 88 | . 62 123 88 43 30 136 111 105 28 Received Heat Transfer 4360 | . 99 343 1242 441 198 642 . 45 1350 Effects 30 | . . 2 3 . . 20 1 4 . Shutdowns 13 | . . . 2 . . 11 . . . Energy Bleed 3 | . . . 1 . . . . 2 . Interference 10 | . . 2 . . . 5 1 2 . Matter Decay 1 | . . . . . . 1 . . . Short Circuit 2 | . . . . . . 2 . . . Damage (minor) 1 | . . . . . . 1 . . . Siege Activations . | . . . . . . . . . . Martial Activations . | . . . . . . . . . . Shielding Activations . | . . . . . . . . . . Robots Disrupted . | . . . . . . . . . . Combat Hostiles . | . . . . . . . . . . Robots Corrupted 4 | . . . . 1 . 1 . 1 1 Combat Hostiles 3 | . . . . 1 . 1 . 1 . Parts Fried 9 | . . . 2 . . 5 . . 2 Impact Corruptions . | . . . . . . . . . . Robots Melted . | . . . . . . . . . . Combat Hostiles . | . . . . . . . . . . Parts Melted 4 | . 1 . . . 1 2 . . . Heat Transferred 2650 | 25 475 1250 550 250 . 50 . 50 . Parts Sabotaged . | . . . . . . . . . . Parts Stolen . | . . . . . . . . . . Parts Stripped . | . . . . . . . . . . Power Chain Reactions 15 | . . . 6 6 . 1 . 1 1 Alert | -11 -10 -10 -8 -8 -8 -7 -7 -7 -6 ------- Run | Yrd Mat Sub Mat Sto Gar Fac Low Low Fac Maximum Alert Level 5 | . . . 2 1 5 3 . . . Low Security (%) 31 | 100 100 . 18 96 4 1 . . 100 Level 1 16 | . . . 60 3 2 29 . . . Level 2 18 | . . . 20 . 22 33 . . . Level 3 12 | . . . . . 16 35 . . . Level 4 5 | . . . . . 15 . . . . Level 5 15 | . . . . . 39 . . . . High Security . | . . . . . . . . . . Max Security . | . . . . . . . . . . Sterilizations 1 | . . . 1 . . . . . . Peak Influence 2814 | 10 62 . 530 223 2814 1097 . . 53 Initial 1097 | . . . . 78 96 1097 . . . Average 678 | 1 8 . 312 55 1350 590 . . 2 Influence Increases 6757 | 15 208 175 1669 842 2818 808 21 50 151 Destroy 0b10 Robot/C 3200 | . 120 120 1020 500 820 460 20 40 100 Destroy 0b10 Robot/NC 275 | 15 15 . 85 70 10 65 . . 15 Destroy Leader 596 | . 36 10 274 126 30 98 . 10 12 Allied During Kill 157 | . . . . 25 130 1 1 . . Trap Triggered on 0b10 20 | . 10 . . 10 . . . . . Successful Hack 113 | . 27 . 49 10 10 17 . . . Disable Machine 88 | . . . 12 12 4 36 . . 24 Anti-Garrison Action 1900 | . . . 150 . 1750 . . . . Destroy Structure 138 | . . . 49 14 64 11 . . . Lose Combat Pursuer 270 | . . 45 30 75 . 120 . . . Influence Decreases 6757 | 15 208 175 1410 906 199 3272 371 50 151 Entered New Map 2179 | . . . . 181 99 1717 182 . . Time Decay 4054 | 15 208 175 1200 646 . 1485 189 50 86 Lost Part 220 | . . . 60 30 40 30 . . 60 Lost Ally 105 | . . . . . 60 40 . . 5 Purge Threat 199 | . . . 150 49 . . . . . Squads Dispatched 36 | . . . 13 8 . 10 . . 5 Investigation 12 | . . . 8 3 . . . . 1 Extermination 4 | . . . . . . 3 . . 1 Reinforcement 11 | . . . 1 1 . 6 . . 3 Assault 2 | . . . 1 . . 1 . . . Garrison 7 | . . . 3 4 . . . . . Intercept . | . . . . . . . . . . Searches Triggered . | . . . . . . . . . . Construction Impeded 3 | . . . . . . 2 . . 1 Haulers Reinforced 4 | . . . . . . 3 . . 1 Active Scanning Responses . | . . . . . . . . . . Cargo Convoy Interrupts . | . . . . . . . . . . Stealth | -11 -10 -10 -8 -8 -8 -7 -7 -7 -6 --------- Run | Yrd Mat Sub Mat Sto Gar Fac Low Low Fac Distress Signals 7 | . . . 2 . 1 3 . . 1 Communications Jammed . | . . . . . . . . . . Distress Signals . | . . . . . . . . . . Times Spotted 254 | . 10 31 64 37 49 36 . 2 25 Peak Tracking Total 13 | . 3 10 6 5 5 6 . 2 13 Tactical Retreats 10 | . . 1 1 3 . 5 . . . Traps | -11 -10 -10 -8 -8 -8 -7 -7 -7 -6 ------- Run | Yrd Mat Sub Mat Sto Gar Fac Low Low Fac Traps Triggered 18 | . 4 3 . 1 7 . . . 3 Indirectly . | . . . . . . . . . . Trap Hack Attempts . | . . . . . . . . . . Triggered . | . . . . . . . . . . Disarmed . | . . . . . . . . . . Reprogrammed 10 | . 6 . . 4 . . . . . Reused 2 | . 1 . . 1 . . . . . Traps Extracted . | . . . . . . . . . . Installed . | . . . . . . . . . . Triggered 2 | . 1 . . 1 . . . . . Machines | -11 -10 -10 -8 -8 -8 -7 -7 -7 -6 ---------- Run | Yrd Mat Sub Mat Sto Gar Fac Low Low Fac Machines Disabled 31 | . . 1 4 3 8 9 . . 6 Max in Single Turn 4 | . . 1 1 1 2 4 . . 3 Garrison Access 1 | . . . 1 . . . . . . Garrison Relay 2 | . . . . . 2 . . . . Phase Generator 1 | . . . . . 1 . . . . Machines Repaired . | . . . . . . . . . . Machines Dismantled . | . . . . . . . . . . Machines Sabotaged . | . . . . . . . . . . Overloaded Fab Kills . | . . . . . . . . . . Hacking | -11 -10 -10 -8 -8 -8 -7 -7 -7 -6 --------- Run | Yrd Mat Sub Mat Sto Gar Fac Low Low Fac Machines Accessed 31 | . 5 1 11 4 3 3 2 1 1 Terminals 19 | . 4 . 8 3 3 1 . . . Fabricators 2 | . . . . . . 2 . . . Repair Stations . | . . . . . . . . . . Recycling Units 3 | . 1 . 1 . . . . . 1 Scanalyzers 2 | . . . 2 . . . . . . Garrison Access 1 | . . . . 1 . . . . . Total Hacks 111 | . 18 9 47 16 4 7 6 1 3 Successful 82 | . 8 9 36 12 3 5 6 1 2 Failed 29 | . 10 . 11 4 1 2 . . 1 Catastrophic 4 | . 2 . 2 . . . . . . Database Lockouts . | . . . . . . . . . . Manual . | . . . . . . . . . . Terminals 74 | . 16 . 36 14 4 4 . . . Fabricators 3 | . . . . . . 3 . . . Repair Stations . | . . . . . . . . . . Recycling Units 8 | . 2 . 3 . . . . . 3 Scanalyzers 8 | . . . 8 . . . . . . Garrison Access 2 | . . . . 2 . . . . . Terminal Hacks 64 | . 7 9 25 10 3 3 6 1 . Record 28 | . 2 8 10 2 . 1 5 . . Robot Analysis 3 | . 1 . 2 . . . . . . Prototype ID Bank 4 | . . . 2 1 . 1 . . . Open Door 3 | . . . . . 1 . 1 1 . Level Access Points 1 | . . . 1 . . . . . . Branch Access Points 1 | . 1 . . . . . . . . Emergency Access Points 1 | . . . . . 1 . . . . Terminal Index 2 | . . . 1 1 . . . . . Scanalyzer Index 1 | . . . . . . 1 . . . Alert Level 3 | . . . 2 1 . . . . . Unreport Threat 3 | . . . 1 2 . . . . . Locate Traps 2 | . 1 . 1 . . . . . . Reprogram Traps 3 | . 1 . . 2 . . . . . Dispatch Records 1 | . . . . 1 . . . . . Transport Status 1 | . . . 1 . . . . . . Recall Reinforcements 1 | . 1 . . . . . . . . Hauler Manifests 2 | . . . 2 . . . . . . Registered Prototypes 1 | . . . 1 . . . . . . Zone Layout 1 | . . . 1 . . . . . . Garrison Registry 1 | . . . . . 1 . . . . Proto ID Catalog 1 | . . 1 . . . . . . . Fabricator Hacks 2 | . . . . . . 2 . . . Network Status 1 | . . . . . . 1 . . . Build 1 | . . . . . . 1 . . . Repair Station Hacks . | . . . . . . . . . . Recycling Unit Hacks 6 | . 1 . 3 . . . . . 2 Process 2 | . . . 1 . . . . . 1 Report Inventory 1 | . . . 1 . . . . . . Retrieve Matter 2 | . . . 1 . . . . . 1 Retrieve Components 1 | . 1 . . . . . . . . Scanalyzer 8 | . . . 8 . . . . . . Insert Component 6 | . . . 6 . . . . . . Analyze 2 | . . . 2 . . . . . . Garrison Access Hacks 2 | . . . . 2 . . . . . Unlock Access 1 | . . . . 1 . . . . . Coupler Status 1 | . . . . 1 . . . . . Unauthorized Hacks . | . . . . . . . . . . Terminals . | . . . . . . . . . . Fabricators . | . . . . . . . . . . Repair Stations . | . . . . . . . . . . Recycling Units . | . . . . . . . . . . Scanalyzers . | . . . . . . . . . . Garrison Access . | . . . . . . . . . . Data Cores Recovered 2 | . . . 1 . . 1 . . . Used . | . . . . . . . . . . Hacking Detections 24 | . 4 . 11 4 2 2 . . 1 Full Trace Events 17 | . 3 . 9 3 1 . . . 1 Feedback Events . | . . . . . . . . . . Feedback Blocked . | . . . . . . . . . . Robot Schematics Acquired . | . . . . . . . . . . Robots Built . | . . . . . . . . . . Authchips . | . . . . . . . . . . Time . | . . . . . . . . . . Total Robot Build Rating . | . . . . . . . . . . Part Schematics Acquired 2 | . . . 2 . . . . . . Parts Built 1 | . . . . . . 1 . . . Authchips . | . . . . . . . . . . Time 84 | . . . . . . 84 . . . Total Part Build Rating 6 | . . . . . . 6 . . . Parts Repaired . | . . . . . . . . . . Time . | . . . . . . . . . . Parts Recycled . | . . . . . . . . . . Recycled Matter 207 | . . . 200 . . . . . 7 Retrieved Matter 438 | . . . 431 . . . . . 7 Retrieved Components 2 | . 2 . . . . . . . . Parts Scanalyzed 2 | . . . 2 . . . . . . Part Schematics Acquired 2 | . . . 2 . . . . . . Parts Damaged . | . . . . . . . . . . Bothacking | -11 -10 -10 -8 -8 -8 -7 -7 -7 -6 ------------ Run | Yrd Mat Sub Mat Sto Gar Fac Low Low Fac Used RIF Installer 1 | . . . . . 1 . . . . Robots Hacked 5 | . . . . . . 1 . . 4 Non-combat 2 | . . . . . . 1 . . 1 Combat 3 | . . . . . . . . . 3 Robot Hacks Applied 5 | . . . . . . 1 . . 4 ignore_repairs 1 | . . . . . . 1 . . . find_recycling 1 | . . . . . . . . . 1 streamctrl_high 3 | . . . . . . . . . 3 Relay Couplers Released 10 | . . . 2 . 8 . . . . Machine Destruction 10 | . . . 2 . 8 . . . . Attached 1 | . . . . . . . . . 1 Fabnet Peak Effective % . | . . . . . . . . . . Robots Rewired . | . . . . . . . . . . Allies Hacked . | . . . . . . . . . . Hacks Repelled . | . . . . . . . . . . Allies | -11 -10 -10 -8 -8 -8 -7 -7 -7 -6 -------- Run | Yrd Mat Sub Mat Sto Gar Fac Low Low Fac Total Allies 18 | . . . . 10 2 . 3 . 3 Largest Group 10 | . . . . 10 10 2 3 . 2 Highest-Rated Group 173 | . . . . 173 173 40 60 . 24 Highest-Rated Ally 31 | . . . . 29 31 26 20 . 12 Total Orders . | . . . . . . . . . . Ally Attacks 156 | . . . . 2 146 . 3 . 5 Total Damage 1702 | . . . . 28 1513 . 102 . 59 Kills 27 | . . . . 1 24 . 1 . 1 Allies Corrupted . | . . . . . . . . . . Allies Melted . | . . . . . . . . . . Intel | -11 -10 -10 -8 -8 -8 -7 -7 -7 -6 ------- Run | Yrd Mat Sub Mat Sto Gar Fac Low Low Fac Active Infowar (turns) 6807 | . 704 250 246 . 1376 1980 624 1260 367 Optics 246 | . . . 246 . . . . . . Sensors 5030 | . . . . . 1376 1945 624 849 236 Terrain 954 | . 704 250 . . . . . . . T.N.C. 2053 | . . . . . . 83 357 1260 353 Robot Analysis Total 3 | . 1 . 2 . . . . . . Derelict Logs Recovered 5 | . . 2 . . . . 1 2 . Drone Launches . | . . . . . . . . . . Drone Recoveries . | . . . . . . . . . . Exploration | -11 -10 -10 -8 -8 -8 -7 -7 -7 -6 ------------- Run | Yrd Mat Sub Mat Sto Gar Fac Low Low Fac Turns Passed 15936 | 141 772 3468 1708 1056 3997 1996 624 1260 914 Spaces Moved 7203 | 88 479 1462 706 295 1527 877 509 1049 211 Core 110 | 41 . . . . . . . . 69 Treads 2430 | . . 2 260 295 1527 346 . . . Legs 692 | 47 479 166 . . . . . . . Wheels 3971 | . . 1294 446 . . 531 509 1049 142 Hover . | . . . . . . . . . . Flight . | . . . . . . . . . . Fastest Speed 50 | 50 120 120 90 246 242 115 117 117 50 Average Speed 186 | 122 120 209 165 246 246 172 117 117 336 Slowest Speed 1850 | 150 190 260 250 247 247 325 117 117 1850 Overloaded Moves . | . . . . . . . . . . Propulsion Burnouts . | . . . . . . . . . . Robots Hopped . | . . . . . . . . . . Potential Cave-ins . | . . . . . . . . . . Cave-ins Triggered . | . . . . . . . . . . Exploration Rate (%) 51 | 7 63 67 48 41 96 16 71 96 7 Regions Visited 9 Branch Regions 4 Pre-discovered Areas 1 | . . 1 . . . . . . . Known Exits Taken 8 | 1 1 1 1 1 . 1 1 1 . Unknown Exits Taken . | . . . . . . . . . . Scrap Searched 9 | . . 5 . . . . 3 1 . Spaces Dug . | . . . . . . . . . . Terrain Destroyed 156 | . . 20 40 10 76 9 . 1 . Melee . | . . . . . . . . . . Projectile . | . . . . . . . . . . AOE 156 | . . 20 40 10 76 9 . 1 . Terrain Rammed . | . . . . . . . . . . Walls Destroyed . | . . . . . . . . . . Machines Disabled . | . . . . . . . . . . Actions | -11 -10 -10 -8 -8 -8 -7 -7 -7 -6 --------- Run | Yrd Mat Sub Mat Sto Gar Fac Low Low Fac Total 8878 | 113 628 1722 1026 520 1688 1220 538 1075 348 Wait 665 | . 102 80 41 116 6 219 27 . 74 Move 7195 | 87 478 1461 705 295 1526 876 508 1048 211 Hop . | . . . . . . . . . . Pick Up 165 | 12 6 49 47 9 31 8 1 . 2 Fast Attach 32 | . 8 6 7 2 1 7 . . 1 Attach 57 | 7 . 11 15 3 6 5 1 . 9 Detach . | . . . . . . . . . . Swap 64 | . 3 10 13 13 14 9 . . 2 Drop 117 | . 7 26 32 4 30 14 1 . 3 Fire 536 | 7 24 79 165 78 64 81 . 5 33 Melee 6 | . . . . . . 1 . 2 3 Ram 11 | . . . 1 . . . . . 10 Kick . | . . . . . . . . . . Crush . | . . . . . . . . . . Escape Stasis 10 | . . . . . 10 . . . . Rewire 20 | . . . . . . . . 20 . Trap . | . . . . . . . . . . Miscellaneous . | . . . . . . . . . . Route ------- -11/Scrapyard -10/Materials (discovered 4 exits: *Mat x2 / Min / *Sub) -10/Subcaves -8/Materials (discovered 5 exits: *Fac x3 / *Sto x2) -8/Storage -8/Garrison (discovered 3 exits: *Fac x3) -7/Factory (discovered 2 exits: *Low x2) -7/Lower Caves -7/Lower Caves (discovered 2 exits: *Fac / *Zio) -6/Factory (discovered 4 exits: *Fac / Low / Ext x2) History --------- Turn | Location | Event 24 | -11/Scrapyard | Identified exit to Materials 24 | -11/Scrapyard | Discovered exit to Materials (range 16) 142 | -11/Scrapyard | Entered Materials 142 | -10/Materials | Evolved 1 slot: Power x1 203 | -10/Materials | Identified exit to Mines 308 | -10/Materials | Build established: Hacker-Mutant 584 | -10/Materials | Identified exit to Materials 584 | -10/Materials | Discovered exit to Materials (range 5) 727 | -10/Materials | Discovered exit to Materials (range 16) 905 | -10/Materials | Identified exit to Subcaves 905 | -10/Materials | Discovered exit to Subcaves (range 7) 914 | -10/Materials | Entered Subcaves 958 | -10/Subcaves | Learned location of 1 exit from Materials 980 | -10/Subcaves | Ambushed by swarm of Subdwellers 982 | -10/Subcaves | Ambushed by Subdweller buried in earth 982 | -10/Subcaves | Ambushed by Subdwellers from Twisted Machinery 982 | -10/Subcaves | Ambushed by Subdwellers from Twisted Machinery 982 | -10/Subcaves | Ambushed by Subdwellers from Twisted Machinery 988 | -10/Subcaves | Ambushed by Subdweller buried in earth 1037 | -10/Subcaves | Lost 3 parts (1p1n1w) 1455 | -10/Subcaves | Build established: Hauler-Mutant 1884 | -10/Subcaves | Learned location of Zion (-7) 1884 | -10/Subcaves | Met a Zionite searching for "candidates" 2016 | -10/Subcaves | Core integrity fell below 50% 2093 | -10/Subcaves | Identified exit to Materials 2093 | -10/Subcaves | Discovered exit to Materials (range 13) 2157 | -10/Subcaves | A swath of the cavern ceiling suddenly collapsed 2965 | -10/Subcaves | Core integrity fell below 20% 3083 | -10/Subcaves | Shifting Twisted Machinery released Sub. Power Source 3091 | -10/Subcaves | Learned 4 Materials zone layouts 3699 | -10/Subcaves | Visited 4L-MR0's lab 3843 | -10/Subcaves | Found Rainbow Chip 4382 | -10/Subcaves | Entered Materials 4382 | -8/Materials | Evolved 4 slots: Propulsion x2, Utility x2 4383 | -8/Materials | Identified exit to Factory 4534 | -8/Materials | Garrison activated, responded to threat 4955 | -8/Materials | Lost 3 parts (1p1n1u) 5277 | -8/Materials | Identified exit to Storage 5277 | -8/Materials | Discovered exit to Storage (range 9) 5358 | -8/Materials | Build established: Scavenger-Mutant 5400 | -8/Materials | Destroyed 7 combat bots 5889 | -8/Materials | Discovered exit to Storage (range 6) 5967 | -8/Materials | Build established: Hacker-Mutant 6061 | -8/Materials | Sterilization system engaged 6061 | -8/Materials | Non-combat units ordered to evacuate 6090 | -8/Materials | Entered Storage 6706 | -8/Storage | Garrison activated, responded to threat 6791 | -8/Storage | Lost 3 allies 7057 | -8/Storage | Assisted by bots powering up and referring to "LRC-V3" 7073 | -8/Storage | Garrison activated, responded to threat 7124 | -8/Storage | Identified exit to Garrison 7146 | -8/Storage | Entered Garrison 7146 | -8/Garrison | Accompanied by 10 allies 7294 | -8/Garrison | Triggered checkpoint 7320 | -8/Garrison | Triggered checkpoint 7348 | -8/Garrison | Triggered checkpoint 7357 | -8/Garrison | Build established: Commander-Mutant 7408 | -8/Garrison | Triggered checkpoint 7506 | -8/Garrison | Discovered exit to Factory (range 11) 7578 | -8/Garrison | Triggered checkpoint 7588 | -8/Garrison | Garrison Relay disabled 7736 | -8/Garrison | Triggered checkpoint 7987 | -8/Garrison | Triggered checkpoint 8294 | -8/Garrison | Triggered checkpoint 8396 | -8/Garrison | Discovered exit to Factory (range 13) 8677 | -8/Garrison | Discovered exit to Factory (range 67) 8677 | -8/Garrison | Discovered exit to Factory (range 33) 8677 | -8/Garrison | Discovered exit to Factory (range 23) 8718 | -8/Garrison | Triggered checkpoint 8904 | -8/Garrison | Rescued a captive Derelict 8905 | -8/Garrison | Rescued a captive Derelict 8907 | -8/Garrison | Core integrity fell below 50% 9394 | -8/Garrison | Installed Relay Interface Framework 9458 | -8/Garrison | Phase Generator disabled 9484 | -8/Garrison | Murdered 5 allies 9811 | -8/Garrison | Build established: Hacker-Mutant 10404 | -8/Garrison | Garrison Relay disabled 11143 | -8/Garrison | Entered Factory 11143 | -7/Factory | Accompanied by 2 allies 11143 | -7/Factory | Evolved 2 slots: Power x1, Utility x1 11453 | -7/Factory | Fabricated Enh. Fission Core (x1) 11512 | -7/Factory | Identified exit to Lower Caves 11512 | -7/Factory | Discovered exit to Lower Caves (range 16) 11661 | -7/Factory | Discovered exit to Lower Caves (range 4) 11943 | -7/Factory | First assault squad dispatched 12645 | -7/Factory | Build established: Scavenger-Mutant 12951 | -7/Factory | Build established: Hacker-Mutant 13057 | -7/Factory | System corruption reached 10% 13139 | -7/Factory | Entered Lower Caves 13231 | -7/Lower Caves | Entered an active Warlord outpost 13248 | -7/Lower Caves | A Commander dispatched an escort 13249 | -7/Lower Caves | Learned location of 1 exit from Factory 13249 | -7/Lower Caves | Learned Extension garrison access intel 13356 | -7/Lower Caves | Build established: Bothacker-Assassin 13665 | -7/Lower Caves | Encountered a Warlord checkpoint 13665 | -7/Lower Caves | Learned location of 1 exit from Factory 13719 | -7/Lower Caves | Identified exit to Lower Caves 13719 | -7/Lower Caves | Discovered exit to Lower Caves (range 16) 13763 | -7/Lower Caves | Entered another Lower Caves area 13763 | -7/Lower Caves | Accompanied by 3 allies 13764 | -7/Lower Caves | Commander's escort returned to base 13764 | -7/Lower Caves | Commander's escort returned to base 13764 | -7/Lower Caves | Commander's escort returned to base 13856 | -7/Lower Caves | Identified exit to Factory 13856 | -7/Lower Caves | Discovered exit to Factory (range 13) 14404 | -7/Lower Caves | Identified exit to Zion 14404 | -7/Lower Caves | Discovered exit to Zion (range 8) 14744 | -7/Lower Caves | Encountered a Warlord checkpoint 14752 | -7/Lower Caves | Learned location of 1 exit from Factory 15023 | -7/Lower Caves | Entered Factory 15023 | -6/Factory | Evolved 2 slots: Utility x2 15024 | -6/Factory | Identified exit to Extension 15024 | -6/Factory | Identified exit to Lower Caves 15126 | -6/Factory | Identified exit to Factory 15126 | -6/Factory | Discovered exit to Factory (range 4) 15358 | -6/Factory | Lost 6 parts (4n1u1w) 15614 | -6/Factory | Build established: Bothacker-Mutant 15873 | -6/Factory | Attached Rainbow Chip, gained temporary slots: Power, Propulsion, Utility, Weapon 15901 | -6/Factory | Core integrity fell below 50% 15925 | -6/Factory | Core integrity fell below 20% 15937 | -6/Factory | Destroyed by G-50 Soldier with Heavy Laser Last Messages --------------- 15919_ K-01 Serf collects debris. 15919_ U-05 Engineer lays Concrete. 15920_ R-10 Processor collects Authchip [R/NC]. 15920_ U-05 Engineer lays Concrete. 15921_ U-05 Engineer destroyed. 15921_ K-01 Serf collects debris. 15921_ Imp. Signal Interpreter destroyed. 15921_ U-05 Engineer lays Concrete. 15921_ Triggered Ambush Trap. 15921_ B-48 Gladiator emerges from a hatch in the floor. 15921_ S-27 Virus emerges from a hatch in the floor. 15921_ U-05 Engineer lays Concrete. 15924_ K-01 Serf collects debris. 15924_ U-05 Engineer lays Concrete. 15925_ K-01 Serf collects debris. 15934_ Slammed into P-60 Hacker. 15936_ Relay Coupler [Swarmer] destroyed. 15936_ K-01 Serf collects debris. Map ----- +----------------------------------------------------+ | ?????????????????????????????????????# ###### | | ??????????????????????????? ####### < | | ?????????????????????????? ^ ^ ### | | ?????????????????????????????# ^^ ^ ^ #?# | | ?????????????????????????????#^ """ ^ #?###+ | | ????????????????????????????## ""R"^""" #??# | | ???????????????????? ???????# ^"" " """ #??# " | | ?????????????????? ??????# ^^ """ #??# " | | ?????????????? !? ??????# """ #??# " | | ?????????????? *? ??????# #### " | | ????????????# ? ####### ! + | | ????????????# ### | | ????????????# % #?? | | ????????????# #?? | | ????????????? ! ### | | ????????????? """ """ % u !! | | ?????????????# """ """ " o R !!!# T####### | | ?????????????# """ """ "" ####?????? | | ??????????? + #????????? | | ?????????????#" """ """ """ #????????? | | ?????????????#T """ """ """ ###??????? | | ?????????????#" """b"""g""" +??????? | | ?????????????# g ggg k ######??????? | | ?????????????# g !% #???????????? | | ?????????????## ####### b w * #???????????? | | ?????????######+####### @ =%= #???????????? | | ?????????# # p % k| #???????????? | | ?????????# """ """ # #???????????? | | ?????????# """ """ s % ?????????? | | ?????????# """ """ ! # #### #?????????? | | ?????????# # # ##???##?????????? | | ?????????################ ###### #???????????????? | | ????????????????????????# #????# #???????????????? | | ????????????????????????# #????# #???????????????? | | ???????????????????????? ????# #???????????????? | | ???????????????????????? " ????# ????????????????? | | ????????????????????????? #???? ????????????????? | | ?????????????????????????+##?????????????????????? | | ?????????????????????????????????????????????????? | | ?????????????????????????????????????????????????? | | ?????????????????????????????????????????????????? | | ?????????????????????????????????????????????????? | | ?????????????????????????????????????????????????? | | ?????????????????????????????????????????????????? | | ?????????????????????????????????????????????????? | | ?????????????????????????????????????????????????? | | ?????????????????????????????????????????????????? | | ?????????????????????????????????????????????????? | | ?????????????????????????????????????????????????? | | ?????????????????????????????????????????????????? | +----------------------------------------------------+ Best States ------------- Heat Dissipation 37 Energy Generation 40 Energy Capacity 430 Matter Stores 600 Matter Capacity 600 Sight Range 21 Robot Scan Range 16 Terrain Scan Range 16 Terrain Scan Density 85 Armor Coverage 800 Resistance: KI 35 Resistance: TH 35 Resistance: EX 35 Resistance: EM 35 Resistance: I 35 Resistance: S 35 Resistance: P 35 Power Shielding 33 Weapon Shielding 33 Evasion (%) 55 Targeting Accuracy 5 Recoil Reduction 4 Offensive Hacking 20 Relay Coupler Types 1 Relay Coupler Value 16 Authchip Count 10 Item Schematics ----------------- Lrg. Matter Pod | -8/Materials | Scanalyzed Minigun | -8/Materials | Scanalyzed Robot Schematics ------------------ None Fabricated ------------ Enh. Fission Core | x1 | -7/Factory | Preloaded Repaired ---------- Nothing Alien Tech Used ----------------- None Achievements -------------- None Challenges ------------ None Game ------ Seed CobblerEnergyArray Manual? 0 Play Time 02:19:43 Cumulative 232.3 hours Start 2025.05.16 @ 00:19:31 End 2025.05.17 @ 02:21:04 Sessions 2 Manual Loads 0 Difficulty Explorer Special Mode None Game No. 24 Rogue 0 Adventurer 2 Explorer 22 Win Type - Total 2 Types 0/2/0/0/0/0/0/0/0/0 Lore% 26 Gallery% 49 Achievement% 48 Wizard Run 0 Options --------- Layout 1 ASCII 0 Keyboard 0 Movement Mouse Keybinds 0 Fullscreen 2 Font 24/Smallcaps Map View 50x35 Zoom Use 0% Tactical HUD 1 Map Filters NONE Filters NONE Steam 1 RUN: 08d35edd-bcab-4909-b1a0-cb8f82f69fc8